bitfinex/quotes_SOLUSD_20240616
["timestamp","ask_amount","ask_price","bid_price","bid_amount"]
[1718519273136,15.1848,144.44,144.41,5.65]
[1718519276862,15.1848,144.44,144.39,0.68]
[1718519277049,15.1848,144.44,144.41,5.65]
[1718519277767,15.1848,144.44,144.39,28.91011319]
[1718519277970,15.1848,144.44,144.41,5.65]
[1718519285878,16.0614,144.47,144.41,5.65]
[1718519286172,21.7114,144.47,144.42,5.65]
[1718519292490,5.65,144.46,144.39,34.48247616]
[1718519292795,5.65,144.45,144.4,5.65]
[1718519293494,5.65,144.46,144.4,5.65]
[1718519294573,5.65,144.46,144.39,34.48247616]
[1718519294772,5.65,144.46,144.4,5.65]
[1718519295578,5.65,144.46,144.39,28.91011319]
[1718519295887,5.65,144.45,144.39,25.82]
[1718519297467,5.65,144.45,144.4,5.65]
[1718519297883,5.65,144.46,144.4,5.65]
[1718519300003,5.65,144.45,144.4,5.65]
[1718519300297,5.65,144.45,144.39,25.82]
[1718519302581,5.65,144.45,144.39,20.17]
[1718519302997,5.65,144.45,144.39,25.82]
[1718519304778,5.65,144.45,144.4,5.65]
[1718519305107,5.65,144.46,144.4,5.65]
[1718519305787,21.7114,144.47,144.41,5.65]
[1718519309288,16.0614,144.47,144.41,5.65]
[1718519309579,21.7114,144.47,144.42,5.65]
[1718519309788,16.0614,144.47,144.42,5.65]
[1718519311904,21.7114,144.47,144.42,5.65]
[1718519312994,21.7114,144.47,144.41,5.82]
[1718519313821,5.65,144.46,144.4,5.99]
[1718519317502,5.65,144.46,144.41,5.65]
[1718519319919,5.65,144.46,144.4,0.34]
[1718519320103,5.65,144.46,144.41,5.65]
[1718519326525,5.65,144.46,144.39,20.0]
[1718519326704,5.65,144.44,144.39,20.0]
[1718519326905,5.65,144.44,144.38,25.65]
[1718519327113,5.65,144.44,144.38,20.0]
[1718519327313,16.0614,144.47,144.38,25.65]
[1718519327625,16.0614,144.47,144.39,5.65]
[1718519327933,5.65,144.45,144.39,5.65]
[1718519329902,5.65,144.46,144.4,5.65]
[1718519333547,5.65,144.46,144.39,5.65]
[1718519335434,5.65,144.45,144.39,5.65]
[1718519337003,16.0614,144.47,144.38,25.65]
[1718519337210,5.65,144.44,144.38,25.65]
[1718519338232,5.65,144.44,144.39,8.31299545]
[1718519338641,5.65,144.44,144.39,13.96299545]
[1718519338936,5.65,144.44,144.39,5.65]
[1718519342738,5.65,144.45,144.4,5.65]
[1718519342929,5.65,144.46,144.4,5.65]
[1718519343944,5.65,144.46,144.38,20.0]
[1718519343945,16.0614,144.47,144.41,5.65]
[1718519344144,21.7114,144.47,144.41,5.65]
[1718519345245,16.0614,144.47,144.39,0.68]
[1718519345423,16.0614,144.47,144.43,5.65]
[1718519346645,16.0614,144.47,144.42,5.65]
[1718519346862,21.7114,144.47,144.41,0.34]
[1718519347068,21.7114,144.47,144.41,5.99]
[1718519347542,21.7114,144.47,144.4,7.77309097]
[1718519347543,5.65,144.46,144.4,13.42309097]
[1718519349950,5.65,144.45,144.4,7.77309097]
[1718519350127,5.65,144.45,144.36,122.7108]
[1718519350128,5.65,144.42,144.35,9.26529203]
[1718519350439,5.65,144.41,144.36,8.31408722]
[1718519351240,5.65,144.41,144.36,13.96408722]
[1718519351449,20.7132,144.42,144.36,5.65]
[1718519361153,15.0632,144.42,144.36,5.65]
[1718519361353,20.7132,144.42,144.36,5.65]
[1718519362767,20.7132,144.42,144.33,0.17]
[1718519362961,20.7132,144.42,144.36,5.65]
[1718519366878,11.6747,144.41,144.33,20.68]
[1718519367067,5.65,144.4,144.33,0.68]
[1718519367251,5.65,144.4,144.34,5.65]
[1718519370864,5.65,144.4,144.33,0.51]
[1718519371075,5.65,144.4,144.35,5.65]
[1718519373761,5.65,144.4,144.34,5.65]
[1718519376477,16.0402,144.39,144.34,5.65]
[1718519376773,21.6902,144.39,144.33,5.65]
[1718519376980,16.0402,144.35,144.29,6.08908542]
[1718519377166,5.65,144.34,144.26,16.0402]
[1718519377369,5.65,144.34,144.28,5.65]
[1718519377560,16.0402,144.35,144.26,21.68211098]
[1718519377561,21.6902,144.35,144.29,5.65]
[1718519378103,16.0402,144.35,144.31,5.65]
[1718519378379,16.0402,144.35,144.27,143.39]
[1718519378590,16.0402,144.35,144.28,28.31744978]
[1718519378765,16.0402,144.35,144.3,0.17]
[1718519381166,16.0402,144.35,144.32,5.65]
[1718519383477,16.0402,144.35,144.31,5.65]
[1718519386701,16.0402,144.35,144.32,5.65]
[1718519388603,16.0402,144.35,144.31,5.65]
[1718519389980,16.0402,144.35,144.3,5.65]
[1718519392301,16.0402,144.35,144.31,5.65]
[1718519393499,16.0402,144.35,144.32,5.65]
[1718519400510,16.0402,144.35,144.29,0.51]
[1718519400701,16.0402,144.35,144.3,5.65]
[1718519402423,21.6902,144.35,144.28,20.17]
[1718519402597,21.6902,144.35,144.29,5.65]
[1718519403106,21.6902,144.35,144.28,20.17]
[1718519403107,21.6902,144.35,144.28,20.0]
[1718519403325,21.6902,144.35,144.29,5.65]
[1718519404826,5.65,144.34,144.29,5.65]
[1718519407313,12.0286,144.34,144.28,20.0]
[1718519407514,12.0286,144.34,144.28,5.65]
[1718519407720,12.0286,144.34,144.27,20.0]
[1718519407918,12.0286,144.34,144.24,14.07453242]
[1718519407919,12.0286,144.34,144.28,5.65]
[1718519408326,5.65,144.33,144.25,25.47501697]
[1718519408509,5.65,144.32,144.27,5.65]
[1718519408709,5.65,144.33,144.27,5.65]
[1718519412417,6.3786,144.34,144.24,14.24453242]
[1718519412418,21.313,144.32,144.24,14.24453242]
[1718519412712,5.65,144.31,144.24,5.72725208]
[1718519412927,5.65,144.31,144.21,129.56188034]
[1718519412928,21.313,144.29,144.21,8.34728034]
[1718519413119,21.313,144.29,144.23,5.65]
[1718519413331,5.65,144.28,144.21,8.34728034]
[1718519413546,5.65,144.27,144.22,5.65]
[1718519413726,5.65,144.27,144.22,13.97119294]
[1718519414041,5.65,144.27,144.22,5.65]
[1718519414924,5.65,144.28,144.22,5.65]
[1718519415937,15.663,144.29,144.23,0.17]
[1718519416116,15.663,144.29,144.25,5.65]
[1718519416440,15.663,144.29,144.26,5.65]
[1718519417940,15.663,144.29,144.25,5.65]
[1718519418941,15.663,144.29,144.23,0.17]
[1718519419150,15.663,144.29,144.25,5.65]
[1718519420248,15.663,144.29,144.24,5.65]
[1718519420428,21.313,144.29,144.24,5.65]
[1718519420618,15.663,144.29,144.24,5.65]
[1718519423926,21.313,144.29,144.24,5.65]
[1718519425964,15.663,144.29,144.24,5.65]
[1718519429356,15.663,144.29,144.22,0.51]
[1718519429656,15.663,144.29,144.24,5.65]
[1718519430745,15.663,144.29,144.25,5.65]
[1718519435065,15.663,144.29,144.26,5.65]
[1718519435576,15.663,144.29,144.22,20.51]
[1718519435577,15.663,144.29,144.25,5.65]
[1718519435949,15.663,144.29,144.24,5.65]
[1718519436164,15.663,144.29,144.25,5.65]
[1718519436866,15.663,144.29,144.26,5.65]
[1718519445480,15.663,144.29,144.24,0.34]
[1718519445774,15.663,144.29,144.24,5.65]
[1718519446385,21.313,144.29,144.23,5.99]
[1718519446578,21.313,144.29,144.24,28.3206254]
[1718519446785,21.313,144.29,144.24,20.0]
[1718519448889,21.313,144.29,144.24,25.65]
[1718519448890,15.663,144.29,144.24,25.65]
[1718519450491,15.663,144.29,144.25,5.65]
[1718519452391,15.663,144.29,144.26,5.65]
[1718519457161,15.663,144.29,144.25,5.82]
[1718519457462,15.663,144.29,144.26,8.32028103]
[1718519458176,15.663,144.29,144.24,25.65]
[1718519458380,15.663,144.29,144.25,8.32042908]
[1718519459581,15.663,144.29,144.25,13.97042908]
[1718519459889,15.663,144.29,144.26,8.32042908]
[1718519473417,21.8759,144.34,144.28,5.65]
[1718519473714,21.8759,144.34,144.29,13.97042908]
[1718519473938,21.8759,144.34,144.29,5.65]
[1718519474783,21.8759,144.34,144.3,0.38439824]
[1718519475016,21.8759,144.34,144.29,5.65]
[1718519476009,21.8759,144.34,144.27,0.17]
[1718519476010,21.8759,144.34,144.3,1.38303057]
[1718519476209,15.5134,144.34,144.31,5.65]
[1718519476513,15.5134,144.34,144.32,5.65]
[1718519477711,15.5134,144.34,144.29,0.17]
[1718519477895,15.5134,144.34,144.31,5.65]
[1718519478308,15.5134,144.34,144.29,0.17]
[1718519478615,15.5134,144.34,144.27,20.0]
[1718519478820,11.7702,144.33,144.27,20.0]
[1718519479022,5.65,144.32,144.27,5.65]
[1718519479190,5.65,144.32,144.28,20.0]
[1718519479897,11.7702,144.33,144.28,5.65]
[1718519481932,6.1202,144.33,144.28,5.65]
[1718519482215,6.1202,144.33,144.29,5.65]
[1718519483835,6.1202,144.33,144.3,5.65]
[1718519487104,6.1202,144.33,144.26,120.0]
[1718519487105,6.1202,144.33,144.29,5.65]
[1718519487302,6.1202,144.33,144.28,5.65]
[1718519487504,11.7702,144.33,144.27,5.65]
[1718519487706,11.7702,144.33,144.28,20.0]
[1718519488708,11.7702,144.33,144.26,20.17]
[1718519488909,11.7702,144.33,144.27,13.96917992]
[1718519489136,11.7702,144.33,144.28,20.0]
[1718519489319,5.65,144.32,144.28,20.0]
[1718519490122,5.65,144.32,144.27,5.65]
[1718519490322,5.65,144.32,144.26,5.82]
[1718519490516,6.1202,144.33,144.27,33.96917161]
[1718519490755,6.1202,144.33,144.27,25.65]
[1718519490756,11.7702,144.33,144.27,25.65]
[1718519490912,11.7702,144.33,144.27,20.0]
[1718519491239,11.7702,144.33,144.27,5.65]
[1718519491412,5.65,144.32,144.25,20.0]
[1718519491617,5.65,144.32,144.26,13.96949926]
[1718519491816,5.65,144.32,144.26,5.65]
[1718519496015,5.65,144.32,144.27,5.65]
[1718519497819,11.7702,144.33,144.27,5.65]
[1718519498020,11.7702,144.33,144.28,5.65]
[1718519500660,11.7702,144.33,144.27,5.65]
[1718519500859,6.1202,144.33,144.28,5.65]
[1718519501866,11.7702,144.33,144.28,5.65]
[1718519502550,11.7702,144.33,144.27,5.65]
[1718519503549,6.1202,144.33,144.28,5.65]
[1718519507049,11.7702,144.33,144.27,5.65]
[1718519508965,11.7702,144.33,144.25,20.0]
[1718519509260,11.7702,144.33,144.27,5.65]
[1718519513870,6.1202,144.33,144.27,5.65]
[1718519514043,6.1202,144.33,144.28,8.3193201]
[1718519514361,6.1202,144.33,144.28,5.65]
[1718519518241,6.1202,144.33,144.29,8.31871588]
[1718519520068,6.1202,144.33,144.28,5.65]
[1718519520569,6.1202,144.33,144.29,8.31873354]
[1718519520862,6.1202,144.33,144.29,13.96873354]
[1718519521066,6.1202,144.33,144.29,5.65]
[1718519521840,6.1202,144.33,144.28,5.65]
[1718519525773,6.1202,144.33,144.29,5.65]
[1718519525946,6.1202,144.33,144.3,5.65]
[1718519529049,15.5134,144.34,144.27,5.65]
[1718519529244,15.5134,144.34,144.32,5.65]
[1718519531452,21.8457,144.37,144.32,5.65]
[1718519532586,21.8457,144.37,144.33,5.65]
[1718519534063,21.8457,144.37,144.34,5.65]
[1718519534284,21.8457,144.37,144.31,0.17]
[1718519534486,21.8457,144.37,144.34,5.65]
[1718519536166,21.8457,144.37,144.33,5.65]
[1718519545497,21.8457,144.37,144.34,5.65]
[1718519547195,15.7175,144.37,144.35,5.65]
[1718519557679,6.0277,144.4,144.35,5.65]
[1718519557895,16.2495,144.41,144.37,5.65]
[1718519558314,16.2495,144.41,144.39,5.65]
[1718519558624,6.6134,144.43,144.4,5.65]
[1718519562119,6.6134,144.43,144.39,5.65]
[1718519570508,5.65,144.44,144.39,5.65]
[1718519575042,21.8995,144.45,144.39,5.65]
[1718519577833,21.8995,144.45,144.35,0.17]
[1718519578027,21.8995,144.45,144.39,5.65]
[1718519578825,21.8995,144.45,144.4,5.65]
[1718519578826,16.2495,144.45,144.4,5.65]
[1718519579024,5.65,144.47,144.41,5.65]
[1718519579917,16.4969,144.49,144.41,5.65]
[1718519580224,5.65,144.48,144.42,5.65]
[1718519582137,5.65,144.48,144.38,122.4128]
[1718519582138,5.65,144.48,144.39,0.17]
[1718519582454,5.65,144.48,144.42,5.65]
[1718519583354,5.65,144.46,144.38,22.4128]
[1718519583534,5.65,144.46,144.4,5.65]
[1718519583729,16.6669,144.49,144.41,7.03348178]
[1718519583929,5.65,144.47,144.41,5.65]
[1718519584255,5.65,144.47,144.42,5.65]
[1718519586137,5.65,144.47,144.39,0.34]
[1718519586338,5.65,144.47,144.41,5.65]
[1718519586950,5.65,144.46,144.41,5.65]
[1718519587528,5.65,144.46,144.39,0.34]
[1718519587732,5.65,144.46,144.41,5.65]
[1718519587954,5.65,144.46,144.4,5.65]
[1718519589268,5.65,144.45,144.38,22.4128]
[1718519589584,16.4969,144.45,144.35,8.34728034]
[1718519589772,5.65,144.43,144.37,5.65]
[1718519590067,5.65,144.43,144.35,8.34728034]
[1718519590068,5.65,144.43,144.38,5.65]
[1718519592539,5.65,144.44,144.38,5.65]
[1718519597374,5.65,144.44,144.36,0.17]
[1718519597576,5.65,144.44,144.38,5.65]
[1718519600070,16.4969,144.45,144.4,5.65]
[1718519600987,16.4969,144.45,144.41,5.65]
[1718519603169,15.6564,144.48,144.41,5.65]
[1718519603362,5.65,144.47,144.41,5.65]
[1718519605714,5.65,144.47,144.35,13.83985343]
[1718519605715,41.2659,144.48,144.35,13.83985343]
[1718519605988,5.65,144.43,144.38,5.65]
[1718519607989,0.17,144.47,144.39,5.65]
[1718519608173,5.65,144.45,144.39,5.65]
[1718519610093,5.65,144.44,144.39,5.65]
[1718519610892,5.65,144.44,144.38,5.65]
[1718519614530,22.85676897,144.48,144.38,5.65]
[1718519614816,5.65,144.46,144.4,5.65]
[1718519615404,5.65,144.46,144.37,0.34]
[1718519615405,5.65,144.46,144.41,5.65]
[1718519617895,15.6564,144.48,144.41,5.65]
[1718519618100,5.65,144.47,144.41,5.65]
[1718519620189,5.65,144.46,144.41,5.65]
[1718519625487,5.65,144.47,144.41,5.65]
[1718519631817,8.2107,144.49,144.4,0.17]
[1718519631989,5.65,144.47,144.42,5.65]
[1718519632321,5.65,144.47,144.39,22.5829]
[1718519632322,5.65,144.47,144.41,5.65]
[1718519635017,5.65,144.47,144.39,22.5829]
[1718519635018,5.65,144.47,144.42,5.65]
[1718519635211,5.65,144.48,144.42,5.65]
[1718519643715,5.65,144.48,144.39,22.5829]
[1718519644023,5.65,144.47,144.41,5.65]
[1718519645710,5.65,144.47,144.39,22.5829]
[1718519645917,2.7313,144.46,144.36,30.63438034]
[1718519646219,5.65,144.43,144.37,13.96350452]
[1718519646522,2.9013,144.46,144.37,13.96350452]
[1718519646523,5.65,144.42,144.38,8.31350452]
[1718519646825,5.65,144.42,144.37,5.65]
[1718519647021,0.34,144.46,144.37,5.65]
[1718519647022,5.65,144.43,144.37,5.65]
[1718519647395,5.65,144.43,144.38,5.65]
[1718519648513,15.2855,144.48,144.39,5.65]
[1718519648703,5.65,144.45,144.39,5.65]
[1718519650401,37.8855,144.48,144.39,5.65]
[1718519650402,5.65,144.44,144.39,5.65]
[1718519650992,5.65,144.43,144.38,5.65]
[1718519651197,5.65,144.42,144.37,5.65]
[1718519651397,5.65,144.42,144.38,8.31304718]
[1718519652704,5.65,144.42,144.37,5.65]
[1718519652900,5.65,144.42,144.38,8.31309376]
[1718519654015,5.65,144.43,144.38,13.96309376]
[1718519654326,5.65,144.43,144.38,5.65]
[1718519655700,5.65,144.42,144.36,22.2871]
[1718519655903,5.65,144.39,144.33,14.07453242]
[1718519656139,5.65,144.38,144.34,8.31456879]
[1718519656430,5.65,144.38,144.33,8.31456879]
[1718519656595,5.65,144.38,144.32,27.9371]
[1718519657003,5.65,144.37,144.32,22.2871]
[1718519657230,5.65,144.37,144.32,27.9371]
[1718519660306,5.65,144.41,144.32,27.9371]
[1718519660307,5.65,144.38,144.32,27.9371]
[1718519660730,5.65,144.38,144.33,5.65]
[1718519660944,5.65,144.39,144.33,5.65]
[1718519664908,5.65,144.38,144.32,22.2871]
[1718519665108,5.65,144.38,144.32,27.9371]
[1718519666430,5.65,144.38,144.33,5.65]
[1718519671032,5.65,144.39,144.33,5.65]
[1718519671237,17.8472,144.44,144.34,5.65]
[1718519671550,5.65,144.41,144.35,5.65]
[1718519673824,5.65,144.4,144.34,5.65]
[1718519674249,5.65,144.39,144.34,5.65]
[1718519674745,5.65,144.41,144.32,27.9371]
[1718519674944,5.65,144.38,144.32,27.9371]
[1718519675751,5.65,144.38,144.32,22.2871]
[1718519675952,5.65,144.38,144.32,27.9371]
[1718519684944,0.17,144.4,144.32,22.2871]
[1718519685252,0.17,144.4,144.29,11.41802135]
[1718519685253,5.65,144.34,144.29,6.6411]
[1718519685459,5.65,144.34,144.29,12.2911]
[1718519685847,5.65,144.34,144.29,6.6411]
[1718519686659,5.65,144.34,144.29,12.2911]
[1718519687061,5.65,144.35,144.29,12.2911]
[1718519689067,5.65,144.35,144.3,5.65]
[1718519689564,5.65,144.35,144.29,12.2911]
[1718519690161,5.65,144.34,144.29,12.2911]
[1718519694467,5.65,144.35,144.3,5.65]
[1718519695146,5.65,144.35,144.29,6.6411]
[1718519695350,5.65,144.35,144.3,5.65]
[1718519697975,4.15,144.35,144.3,5.65]
[1718519698568,4.15,144.35,144.29,12.2911]
[1718519700971,5.65,144.34,144.29,12.2911]
[1718519701174,5.65,144.34,144.29,6.6411]
[1718519706070,13.3404,144.34,144.29,6.6411]
[1718519706266,5.65,144.33,144.29,6.6411]
[1718519706568,5.65,144.31,144.28,16.2841]
[1718519708349,5.65,144.31,144.25,11.9874]
[1718519708565,5.65,144.29,144.25,6.3374]
[1718519713486,5.65,144.29,144.23,15.6361]
[1718519714004,5.65,144.29,144.23,21.2861]
[1718519714296,0.17,144.33,144.24,6.34334808]
[1718519714500,5.65,144.31,144.25,5.65]
[1718519715289,5.65,144.31,144.26,0.69325195]
[1718519715489,5.65,144.31,144.25,5.65]
[1718519715693,5.65,144.29,144.24,5.65]
[1718519715994,5.65,144.29,144.23,21.2861]
[1718519717101,5.65,144.29,144.23,15.6361]
[1718519721206,5.65,144.28,144.23,21.2861]
[1718519722087,5.65,144.29,144.23,21.2861]
[1718519722806,0.17,144.33,144.24,5.65]
[1718519723011,5.65,144.31,144.26,5.65]
[1718519723177,5.65,144.31,144.25,11.9175]
[1718519723380,0.17,144.33,144.25,11.9175]
[1718519723381,5.65,144.3,144.25,11.9175]
[1718519723785,5.65,144.3,144.25,6.2675]
[1718519724496,5.65,144.29,144.25,6.2675]
[1718519726986,5.65,144.3,144.25,6.2675]
[1718519728582,0.17,144.33,144.25,11.9175]
[1718519728782,6.4759,144.38,144.27,5.65]
[1718519728783,24.8903,144.38,144.27,5.65]
[1718519729008,5.65,144.33,144.28,21.4951]
[1718519729915,5.65,144.33,144.28,15.8451]
[1718519730080,5.65,144.32,144.28,15.8451]
[1718519731008,5.65,144.31,144.28,15.8451]
[1718519731396,5.65,144.32,144.28,15.8451]
[1718519736105,5.65,144.33,144.28,15.8451]
[1718519740601,5.65,144.32,144.28,15.8451]
[1718519744004,5.65,144.33,144.28,15.8451]
[1718519744219,5.65,144.34,144.28,21.4951]
[1718519744917,5.65,144.34,144.29,5.65]
[1718519747834,5.65,144.34,144.3,1.38583312]
[1718519748000,5.65,144.34,144.29,5.65]
[1718519748201,5.65,144.34,144.28,21.4951]
[1718519749214,4.15,144.34,144.28,21.4951]
[1718519750520,2.5628,144.37,144.28,21.4951]
[1718519750831,5.65,144.34,144.28,21.4951]
[1718519756115,5.65,144.32,144.28,15.8451]
[1718519756631,2.7332,144.35,144.28,15.8451]
[1718519756632,5.65,144.31,144.28,15.8451]
[1718519757024,2.7332,144.35,144.28,15.8451]
[1718519757268,5.65,144.31,144.28,15.8451]
[1718519758738,5.65,144.32,144.28,15.8451]
[1718519761346,5.65,144.33,144.28,15.8451]
[1718519761931,5.65,144.33,144.28,21.4951]
[1718519763035,5.65,144.34,144.28,21.4951]
[1718519763431,5.65,144.33,144.28,21.4951]
[1718519763910,5.65,144.33,144.28,15.8451]
[1718519765439,5.65,144.32,144.28,15.8451]
[1718519767623,5.65,144.31,144.28,15.8451]
[1718519767838,5.65,144.31,144.25,28.5389]
[1718519768143,5.65,144.31,144.26,8.31947925]
[1718519768527,5.65,144.3,144.25,22.8889]
[1718519768733,5.65,144.29,144.25,22.8889]
[1718519768946,5.65,144.29,144.26,8.32039753]
[1718519769250,5.65,144.29,144.25,22.8889]
[1718519769451,5.65,144.29,144.26,8.32039701]
[1718519770636,5.65,144.29,144.25,22.8889]
[1718519771061,5.65,144.28,144.25,22.8889]
[1718519771226,0.17,144.33,144.2,9.20771394]
[1718519771227,5.65,144.27,144.21,23.1119]
[1718519771426,5.65,144.27,144.22,13.97118932]
[1718519771634,5.65,144.27,144.23,8.32118932]
[1718519772749,5.65,144.27,144.21,28.7619]
[1718519773051,5.65,144.26,144.22,8.32133575]
[1718519773924,5.65,144.27,144.22,8.32133575]
[1718519774259,5.65,144.27,144.22,13.97133575]
[1718519774433,5.65,144.27,144.23,8.32133575]
[1718519775964,5.65,144.27,144.22,8.32133575]
[1718519776174,5.65,144.27,144.23,8.3213394]
[1718519776376,5.65,144.27,144.22,8.3213394]
[1718519776667,5.65,144.27,144.23,8.3213394]
[1718519776833,5.65,144.27,144.22,8.3213394]
[1718519777855,4.15,144.27,144.22,8.3213394]
[1718519778241,5.65,144.26,144.22,8.3213394]
[1718519778743,0.17,144.28,144.21,23.1119]
[1718519778744,5.65,144.25,144.21,23.1119]
[1718519779945,5.65,144.25,144.2,0.8604336]
[1718519780171,5.65,144.24,144.2,0.8604336]
[1718519781043,0.34,144.28,144.2,0.8604336]
[1718519781259,5.65,144.24,144.2,0.8604336]
[1718519782443,5.99,144.27,144.2,0.8604336]
[1718519782444,5.65,144.23,144.2,0.8604336]
[1718519784767,5.65,144.24,144.2,0.8604336]
[1718519791265,5.65,144.23,144.2,0.8604336]
[1718519791849,5.99,144.27,144.2,0.8604336]
[1718519792075,5.65,144.24,144.2,0.8604336]
[1718519797576,5.65,144.21,144.2,0.8604336]
[1718519805456,5.82,144.21,144.2,0.8604336]
[1718519816989,5.99,144.21,144.2,0.8604336]
[1718519817181,6.33,144.21,144.2,0.8604336]
[1718519817382,8.8957,144.21,144.2,0.8604336]
[1718519817775,6.33,144.21,144.2,0.8604336]
[1718519819388,6.16,144.21,144.2,0.8604336]
[1718519819574,5.82,144.21,144.2,0.8604336]
[1718519832502,31.817,144.21,144.2,0.8604336]
[1718519832680,31.987,144.21,144.2,0.8604336]
[1718519836310,37.637,144.21,144.2,0.8604336]
[1718519838103,54.587,144.21,144.2,0.8604336]
[1718519838293,70.0903,144.21,144.2,0.8604336]
[1718519838496,70.0903,144.21,144.1,6.1707]
[1718519838497,0.17,144.18,144.1,22.7511]
[1718519838690,5.65,144.15,144.1,28.4011]
[1718519839013,5.65,144.15,144.1,22.7511]
[1718519842603,0.68,144.18,144.1,22.7511]
[1718519842791,5.65,144.15,144.1,22.7511]
[1718519843498,5.65,144.15,144.11,8.32788918]
[1718519844503,5.65,144.15,144.1,28.4011]
[1718519844895,5.65,144.16,144.1,28.4011]
[1718519845503,5.65,144.16,144.11,8.32793467]
[1718519846812,5.65,144.16,144.1,28.4011]
[1718519847206,5.65,144.15,144.1,22.7511]
[1718519847414,5.65,144.15,144.1,28.4011]
[1718519848805,5.65,144.15,144.1,16.5804]
[1718519853825,5.65,144.14,144.1,16.5804]
[1718519858610,8.3787,144.18,144.07,6.1707]
[1718519858611,5.65,144.13,144.07,6.1707]
[1718519858822,5.65,144.13,144.08,8.32851316]
[1718519859307,5.65,144.12,144.07,6.1707]
[1718519859513,5.65,144.12,144.07,11.8207]
[1718519862824,5.65,144.12,144.06,0.8604336]
[1718519862825,5.65,144.11,144.06,0.8604336]
[1718519866719,5.65,144.1,144.06,0.8604336]
[1718519867111,5.65,144.11,144.06,6.5104336]
[1718519867610,5.65,144.13,144.08,5.65]
[1718519867819,0.34,144.15,144.06,0.8604336]
[1718519868132,5.65,144.11,144.06,6.5104336]
[1718519868305,5.65,144.13,144.07,5.65]
[1718519872550,0.34,144.15,144.07,5.65]
[1718519872715,5.65,144.13,144.07,5.65]
[1718519877541,5.65,144.12,144.07,5.65]
[1718519878052,5.65,144.12,144.06,7.5261336]
[1718519878336,5.65,144.12,144.07,5.65]
[1718519880944,5.65,144.11,144.06,7.5261336]
[1718519881244,5.65,144.1,144.06,7.5261336]
[1718519883742,5.65,144.11,144.07,1.38818124]
[1718519883916,5.65,144.12,144.07,1.38818124]
[1718519884117,15.0279,144.16,144.09,5.65]
[1718519884317,5.65,144.14,144.09,5.65]
[1718519884742,5.65,144.14,144.06,7.5261336]
[1718519884743,5.65,144.14,144.08,5.65]
[1718519885240,5.65,144.13,144.07,5.65]
[1718519886021,5.65,144.14,144.08,5.65]
[1718519890549,22.7278,144.16,144.06,7.5261336]